fUSD/lending_fUSD_20260611
["ID","MTS","AMOUNT","RATE_DAILY","PERIOD"]
[424804111,1781173854000,-151.0,0.00023724,2]
[424804112,1781173854000,-932.777091,0.00024,2]
[424804113,1781173854000,-500.0,0.00024,2]
[424804114,1781173854000,-441.0,0.00024,2]
[424804116,1781173854000,-380.0,0.00024,2]
[424804117,1781173854000,-1440.0,0.00024,2]
[424804124,1781173854000,-1291.0,0.00024,2]
[424804149,1781173854000,-719.25351747,0.00024591,2]
[424804105,1781173854000,-158.71838294,0.00023724,2]
[424804155,1781173854000,-151.0,0.00024658,2]
[424804181,1781173854000,-272.59966885,0.00025,2]
[424804184,1781173854000,-489.20996199,0.00025,2]
[424804186,1781173854000,-299.93360028,0.00025,2]
[424804187,1781173854000,-542.00012632,0.00025,2]
[424804188,1781173854000,-319.43237624,0.00025,2]
[424804190,1781173854000,-257.12,0.00025,2]
[424804189,1781173854000,-257.12,0.00025,2]
[424804191,1781173854000,-257.12,0.00025,2]
[424804193,1781173854000,-257.12,0.00025,2]
[424804195,1781173854000,-257.12,0.00025,2]
[424804201,1781173854000,-1000.0,0.000251,2]
[424804202,1781173854000,-316.0,0.000251,2]
[424804185,1781173854000,-1309.83666588,0.00025,2]
[424804194,1781173854000,-257.12,0.00025,2]
[424804197,1781173854000,-257.12,0.00025,2]
[424804200,1781173854000,-229.52719571,0.000251,2]
[424804199,1781173854000,-5294.89,0.00025041,7]
[424804198,1781173854000,-257.12,0.00025,2]
[424804196,1781173854000,-257.12,0.00025,2]
[424804207,1781173854000,-154.12265554,0.00025368,2]
[424804203,1781173854000,-200.0,0.000251,2]
[424804208,1781173854000,-217.15233878,0.00025368,2]
[424804209,1781173854000,-251.11897888,0.00025368,2]
[424804204,1781173854000,-309.0,0.000251,2]
[424804206,1781173854000,-158.71838294,0.00025368,2]
[424804152,1781173854000,-151.0,0.00024658,2]
[424804192,1781173854000,-257.12,0.00025,2]
[424804182,1781173854000,-1246.45860913,0.00025,2]
[424804205,1781173854000,-200.0,0.00025115,2]
[424804183,1781173854000,-453.64031093,0.00025,2]
[424804180,1781173854000,-430.92227884,0.00025,2]
[424804154,1781173854000,-151.0,0.00024658,2]
[424804153,1781173854000,-151.0,0.00024658,2]
[424804159,1781173854000,-150.0,0.00024658,2]
[424804160,1781173854000,-293.97,0.00024747,7]
[424804162,1781173854000,-217.15233878,0.00024818,2]
[424804156,1781173854000,-151.0,0.00024658,2]
[424804158,1781173854000,-625.07,0.00024658,2]
[424804161,1781173854000,-155.18434343,0.00024818,2]
[424804165,1781173854000,-721.12765534,0.00024819,2]
[424804163,1781173854000,-599.60298507,0.00024819,2]
[424804164,1781173854000,-151.0,0.00024819,2]
[424804167,1781173854000,-154.12265554,0.0002482,2]
[424804157,1781173854000,-151.0,0.00024658,2]
[424804175,1781173854000,-441.80448742,0.00025,2]
[424804166,1781173854000,-158.71838294,0.0002482,2]
[424804170,1781173854000,-151.0,0.0002482,2]
[424804171,1781173854000,-151.0,0.0002482,2]
[424804174,1781173854000,-78925.60678773,0.00025,2]
[424804172,1781173854000,-666.0,0.00024889,8]
[424804173,1781173854000,-540.46,0.000249,7]
[424804168,1781173854000,-209.40437684,0.0002482,2]
[424804178,1781173854000,-1442.28679011,0.00025,2]
[424804176,1781173854000,-487.92154219,0.00025,2]
[424804179,1781173854000,-2072.76572234,0.00025,2]
[424804177,1781173854000,-384.89141084,0.00025,2]
[424804169,1781173854000,-242.15909246,0.0002482,2]
[424804233,1781173855000,-155.18434343,0.00026187,2]
[424804230,1781173855000,-204.76612326,0.00026,30]
[424804232,1781173855000,-666.0,0.00026141,9]
[424804234,1781173855000,-225.18697532,0.00026187,2]
[424804239,1781173855000,-181.88651015,0.00026343,2]
[424804240,1781173855000,-1881.019781,0.00026384,2]
[424804249,1781173855000,-1881.019781,0.00026384,2]
[424804241,1781173855000,-1881.019781,0.00026384,2]
[424804238,1781173855000,-159.47308989,0.00026343,2]
[424804248,1781173855000,-1881.019781,0.00026384,2]
[424804247,1781173855000,-1881.019781,0.00026384,2]
[424804245,1781173855000,-1881.019781,0.00026384,2]
[424804242,1781173855000,-1881.019781,0.00026384,2]
[424804244,1781173855000,-1881.019781,0.00026384,2]
[424804246,1781173855000,-1881.019781,0.00026384,2]
[424804254,1781173855000,-158.71838294,0.00026464,2]
[424804251,1781173855000,-1881.019781,0.00026384,2]
[424804237,1781173855000,-200.45659344,0.00026343,2]
[424804243,1781173855000,-1881.019781,0.00026384,2]
[424804236,1781173855000,-1672.4,0.00026296,2]
[424804220,1781173855000,-207.3,0.00025855,2]
[424804231,1781173855000,-150.0,0.00026028,2]
[424804250,1781173855000,-1881.019781,0.00026384,2]
[424804210,1781173855000,-151.0,0.00025368,2]
[424804214,1781173855000,-666.0,0.00025515,9]
[424804211,1781173855000,-151.0,0.00025368,2]
[424804213,1781173855000,-1207.84673059,0.00025397,2]
[424804212,1781173855000,-150.0,0.00025373,2]
[424804216,1781173855000,-200.0,0.00025663,2]
[424804226,1781173855000,-260.4103811,0.00025916,2]
[424804217,1781173855000,-200.0,0.00025743,2]
[424804235,1781173855000,-200.0,0.00026211,2]
[424804219,1781173855000,-152.0,0.00025807,3]
[424804218,1781173855000,-100000.0,0.00025786,7]
[424804223,1781173855000,-158.71838294,0.00025916,2]
[424804221,1781173855000,-6168.0,0.00025911,2]
[424804225,1781173855000,-225.18697532,0.00025916,2]
[424804224,1781173855000,-154.12265554,0.00025916,2]
[424804222,1781173855000,-263.0,0.00025911,2]
[424804227,1781173855000,-151.0,0.00025916,2]
[424804229,1781173855000,-550.0,0.00026,2]
[424804228,1781173855000,-151.0,0.00025916,2]
[424804215,1781173855000,-350.0,0.0002565,6]
[424804253,1781173855000,-540.46,0.000264,7]
[424804258,1781173855000,-151.0,0.00026464,2]
[424804255,1781173855000,-154.12265554,0.00026464,2]
[424804276,1781173855000,-930.0,0.00026872,2]
[424804274,1781173855000,-666.0,0.00026768,10]
[424804283,1781173855000,-61249.44613502,0.0002718,7]
[424804284,1781173855000,-150.0,0.00027299,2]
[424804285,1781173855000,-1274.0,0.00027299,2]
[424804292,1781173855000,-201.30778844,0.00027397,7]
[424804286,1781173855000,-382.0,0.00027299,2]
[424804288,1781173855000,-1358.0,0.00027299,2]
[424804291,1781173855000,-805.23115372,0.00027397,7]
[424804293,1781173855000,-215.98386724,0.00027397,30]
[424804290,1781173855000,-666.0,0.00027394,10]
[424804294,1781173855000,-476.37531509,0.00027397,2]
[424804289,1781173855000,-288.62274944,0.00027307,2]
[424804296,1781173855000,-1500.0,0.00027397,2]
[424804297,1781173855000,-529.16,0.00027397,2]
[424804295,1781173855000,-2585.09455613,0.00027397,2]
[424804298,1781173855000,-3087.87,0.00027397,2]
[424804299,1781173855000,-711.920535,0.00027397,2]
[424804252,1781173855000,-1207.84673059,0.00026397,2]
[424804275,1781173855000,-761.0,0.00026872,2]
[424804273,1781173855000,-274.0,0.00026766,5]
[424804287,1781173855000,-1227.0,0.00027299,2]
[424804280,1781173855000,-242.15909246,0.00027012,2]
[424804260,1781173855000,-2000.0,0.00026535,2]
[424804282,1781173855000,-150.71381454,0.00027157,2]
[424804259,1781173855000,-250.76960971,0.00026464,2]
[424804256,1781173855000,-233.5188934,0.00026464,2]
[424804257,1781173855000,-270.04556521,0.00026464,2]
[424804261,1781173855000,-2000.0,0.00026535,2]
[424804263,1781173855000,-2000.0,0.00026535,2]
[424804269,1781173855000,-585.0,0.00026636,2]
[424804268,1781173855000,-240.87416947,0.00026539,3]
[424804262,1781173855000,-2000.0,0.00026535,2]
[424804264,1781173855000,-1182.0,0.00026535,2]
[424804270,1781173855000,-150.0,0.00026641,2]
[424804265,1781173855000,-2000.0,0.00026535,2]
[424804266,1781173855000,-2000.0,0.00026535,2]
[424804267,1781173855000,-880.0,0.00026535,2]
[424804271,1781173855000,-5294.89,0.00026722,7]
[424804277,1781173855000,-150.0,0.00027,2]
[424804279,1781173855000,-154.12265554,0.00027012,2]
[424804272,1781173855000,-200.0,0.00026759,2]
[424804278,1781173855000,-158.71838294,0.00027012,2]
[424804281,1781173855000,-151.0,0.00027012,2]
[424804338,1781173856000,-153.04762689,0.0002746,7]
[424804334,1781173856000,-155.28361748,0.00027459,7]
[424804333,1781173856000,-152.1684078,0.00027433,7]
[424804331,1781173856000,-202.35477692,0.00027419,7]
[424804328,1781173856000,-805.23115372,0.00027397,7]
[424804330,1781173856000,-167.68,0.000274,7]
[424804326,1781173856000,-625.07,0.00027397,2]
[424804327,1781173856000,-12373.0,0.00027397,10]
[424804340,1781173856000,-198.01299013,0.0002746,7]
[424804332,1781173856000,-155.06156419,0.00027433,7]
[424804336,1781173856000,-150.57512475,0.00027459,7]
[424804348,1781173856000,-157.84635979,0.00027516,7]
[424804337,1781173856000,-154.22367552,0.0002746,5]
[424804342,1781173856000,-173.26134078,0.0002746,7]
[424804352,1781173856000,-157.37807338,0.00027542,7]
[424804341,1781173856000,-155.27088074,0.0002746,7]
[424804350,1781173856000,-216.54328821,0.00027542,7]
[424804345,1781173856000,-500.0,0.000275,7]
[424804346,1781173856000,-200.0,0.000275,10]
[424804344,1781173856000,-293.97,0.00027495,7]
[424804349,1781173856000,-167.21400544,0.00027542,7]
[424804343,1781173856000,-155.75749724,0.0002746,7]
[424804323,1781173856000,-1050.408206,0.00027397,2]
[424804339,1781173856000,-152.80103534,0.0002746,2]
[424804324,1781173856000,-17817.12,0.00027397,10]
[424804301,1781173856000,-711.920535,0.00027397,2]
[424804329,1781173856000,-150.0,0.00027397,2]
[424804347,1781173856000,-163.21374614,0.00027516,7]
[424804306,1781173856000,-711.920535,0.00027397,2]
[424804300,1781173856000,-711.920535,0.00027397,2]
[424804304,1781173856000,-711.920535,0.00027397,2]
[424804302,1781173856000,-711.920535,0.00027397,2]
[424804305,1781173856000,-711.920535,0.00027397,2]
[424804303,1781173856000,-300.0,0.00027397,2]
[424804313,1781173856000,-1050.408206,0.00027397,2]
[424804311,1781173856000,-151.0,0.00027397,2]
[424804308,1781173856000,-151.0,0.00027397,2]
[424804310,1781173856000,-151.0,0.00027397,2]
[424804317,1781173856000,-1050.408206,0.00027397,2]
[424804312,1781173856000,-1050.408206,0.00027397,2]
[424804315,1781173856000,-1050.408206,0.00027397,2]
[424804316,1781173856000,-1050.408206,0.00027397,2]
[424804307,1781173856000,-711.920535,0.00027397,2]
[424804309,1781173856000,-151.0,0.00027397,2]
[424804314,1781173856000,-1050.408206,0.00027397,2]
[424804319,1781173856000,-1050.408206,0.00027397,2]
[424804322,1781173856000,-1050.408206,0.00027397,2]
[424804321,1781173856000,-1050.408206,0.00027397,2]
[424804320,1781173856000,-1050.408206,0.00027397,2]
[424804318,1781173856000,-1050.408206,0.00027397,2]
[424804325,1781173856000,-14847.6,0.00027397,10]
[424804351,1781173856000,-259.43833099,0.00027542,7]
[424804335,1781173856000,-151.05829979,0.00027459,7]
[424804357,1781173856000,-171.81885874,0.00027542,7]
[424804382,1781173856000,-826.64,0.00027671,30]
[424804384,1781173856000,-709.0,0.00027671,30]
[424804383,1781173856000,-2000.0,0.00027671,30]
[424804385,1781173856000,-153.08,0.00027671,2]
[424804387,1781173856000,-153.08,0.00027671,2]
[424804391,1781173856000,-540.46,0.000277,7]
[424804386,1781173856000,-153.08,0.00027671,2]
[424804389,1781173856000,-828.25,0.00027677,30]
[424804390,1781173856000,-826.64,0.00027698,2]
[424804388,1781173856000,-167.81,0.00027671,13]
[424804392,1781173856000,-828.25,0.00027703,2]
[424804377,1781173856000,-828.25,0.00027624,2]
[424804393,1781173856000,-826.64,0.00027725,7]
[424804395,1781173856000,-1075.67,0.00027742,7]
[424804396,1781173856000,-1075.75,0.00027744,7]
[424804397,1781173856000,-715.0,0.00027744,7]
[424804398,1781173856000,-714.71,0.00027747,7]
[424804400,1781173856000,-828.25,0.00027757,30]
[424804399,1781173856000,-826.64,0.00027752,30]
[424804401,1781173856000,-854.98,0.00027767,2]
[424804402,1781173856000,-855.18,0.0002777,2]
[424804404,1781173856000,-828.25,0.00027783,2]
[424804403,1781173856000,-826.64,0.00027779,2]
[424804406,1781173856000,-828.25,0.0002781,7]
[424804394,1781173856000,-828.25,0.0002773,7]
[424804381,1781173856000,-828.25,0.0002765,7]
[424804353,1781173856000,-257.06253634,0.00027542,7]
[424804375,1781173856000,-855.18,0.00027615,7]
[424804358,1781173856000,-155.18434344,0.00027556,2]
[424804355,1781173856000,-173.65308537,0.00027542,7]
[424804354,1781173856000,-198.62359893,0.00027542,7]
[424804356,1781173856000,-153.85851814,0.00027542,7]
[424804361,1781173856000,-151.0,0.00027558,2]
[424804359,1781173856000,-159.87546608,0.00027556,2]
[424804380,1781173856000,-826.64,0.00027644,7]
[424804362,1781173856000,-747.80937859,0.00027558,2]
[424804363,1781173856000,-158.71838294,0.0002756,2]
[424804365,1781173856000,-251.11897888,0.0002756,2]
[424804369,1781173856000,-715.0,0.00027588,30]
[424804368,1781173856000,-1075.75,0.00027588,30]
[424804360,1781173856000,-621.78829552,0.00027558,2]
[424804364,1781173856000,-154.12265568,0.0002756,2]
[424804366,1781173856000,-151.0,0.0002756,2]
[424804367,1781173856000,-1075.67,0.00027585,30]
[424804372,1781173856000,-855.18,0.00027599,30]
[424804370,1781173856000,-714.71,0.00027591,30]
[424804371,1781173856000,-854.98,0.00027595,30]
[424804374,1781173856000,-854.98,0.00027612,7]
[424804373,1781173856000,-300.0,0.000276,10]
[424804378,1781173856000,-8224.0,0.00027639,10]
[424804376,1781173856000,-826.64,0.00027618,2]
[424804379,1781173856000,-351.0,0.00027639,2]
[424804405,1781173856000,-826.64,0.00027806,7]
[424804446,1781173857000,-826.64,0.00028049,7]
[424804441,1781173857000,-215.95576085,0.00028,30]
[424804443,1781173857000,-666.0,0.0002802,11]
[424804442,1781173857000,-284.91992931,0.00028,30]
[424804444,1781173857000,-826.64,0.00028022,2]
[424804439,1781173857000,-162.4,0.00028,2]
[424804438,1781173857000,-162.39,0.00028,2]
[424804437,1781173857000,-162.39,0.00028,2]
[424804435,1781173857000,-162.39,0.00028,2]
[424804440,1781173857000,-600.0,0.00028,2]
[424804445,1781173857000,-828.25,0.00028023,2]
[424804458,1781173857000,-158.71838309,0.00028108,2]
[424804452,1781173857000,-828.25,0.00028076,30]
[424804455,1781173857000,-855.18,0.00028079,7]
[424804449,1781173857000,-1075.75,0.00028058,30]
[424804450,1781173857000,-715.0,0.00028058,30]
[424804448,1781173857000,-1075.67,0.00028056,30]
[424804451,1781173857000,-714.71,0.0002806,30]
[424804454,1781173857000,-854.98,0.00028077,7]
[424804453,1781173857000,-826.64,0.00028076,30]
[424804457,1781173857000,-826.64,0.00028103,2]
[424804465,1781173857000,-1075.75,0.00028215,7]
[424804456,1781173857000,-828.25,0.00028103,2]
[424804436,1781173857000,-162.39,0.00028,2]
[424804447,1781173857000,-828.25,0.0002805,7]
[424804432,1781173857000,-162.39,0.00028,2]
[424804422,1781173857000,-855.18,0.00027925,30]
[424804429,1781173857000,-828.25,0.00027996,30]
[424804459,1781173857000,-260.4103811,0.00028108,2]
[424804407,1781173857000,-826.64,0.00027833,30]
[424804408,1781173857000,-828.25,0.00027837,30]
[424804411,1781173857000,-214.3,0.0002787,2]
[424804410,1781173857000,-828.25,0.00027863,2]
[424804409,1781173857000,-826.64,0.0002786,2]
[424804412,1781173857000,-150.0,0.0002787,7]
[424804414,1781173857000,-828.25,0.0002789,7]
[424804413,1781173857000,-826.64,0.00027887,7]
[424804420,1781173857000,-828.25,0.00027916,30]
[424804418,1781173857000,-714.71,0.00027904,2]
[424804434,1781173857000,-162.39,0.00028,2]
[424804419,1781173857000,-826.64,0.00027914,30]
[424804421,1781173857000,-854.98,0.00027922,30]
[424804416,1781173857000,-1075.75,0.00027901,2]
[424804423,1781173857000,-826.64,0.00027941,2]
[424804424,1781173857000,-828.25,0.00027943,2]
[424804425,1781173857000,-826.64,0.00027968,7]
[424804430,1781173857000,-2123.18,0.00028,7]
[424804433,1781173857000,-162.39,0.00028,2]
[424804431,1781173857000,-162.39,0.00028,2]
[424804426,1781173857000,-828.25,0.0002797,7]
[424804427,1781173857000,-150.0,0.00027973,2]
[424804428,1781173857000,-826.64,0.00027995,30]
[424804417,1781173857000,-715.0,0.00027901,2]
[424804460,1781173857000,-151.0,0.00028108,2]
[424804415,1781173857000,-1075.67,0.00027899,2]
[424804462,1781173857000,-826.7,0.0002813,7]
[424804488,1781173857000,-308.44735104,0.00028756,5]
[424804499,1781173857000,-152.69819965,0.00028815,7]
[424804493,1781173857000,-346.52268156,0.00028756,7]
[424804494,1781173857000,-311.51499448,0.00028756,7]
[424804498,1781173857000,-198.04688191,0.00028767,2]
[424804496,1781173857000,-153.08,0.00028767,2]
[424804497,1781173857000,-153.08,0.00028767,2]
[424804501,1781173857000,-326.42749228,0.00028815,7]
[424804509,1781173857000,-347.30617073,0.00028842,7]
[424804514,1781173857000,-200.0,0.000289,2]
[424804510,1781173857000,-307.71703629,0.00028842,7]
[424804495,1781173857000,-153.08,0.00028767,2]
[424804500,1781173857000,-154.16588348,0.00028815,7]
[424804511,1781173857000,-343.63771748,0.00028842,7]
[424804502,1781173857000,-315.69271958,0.00028815,7]
[424804505,1781173857000,-518.87666199,0.00028841,7]
[424804503,1781173857000,-334.42801088,0.00028841,7]
[424804504,1781173857000,-433.08657642,0.00028841,7]
[424804507,1781173857000,-514.12507268,0.00028841,7]
[424804508,1781173857000,-397.24719787,0.00028841,7]
[424804506,1781173857000,-314.75614676,0.00028841,7]
[424804513,1781173857000,-200.0,0.000289,2]
[424804516,1781173857000,-512.0,0.000289,2]
[424804463,1781173857000,-157.46172826,0.00028144,2]
[424804512,1781173857000,-167.68,0.000289,7]
[424804489,1781173857000,-306.09525379,0.00028756,7]
[424804515,1781173857000,-341.0,0.000289,2]
[424804491,1781173857000,-396.02598026,0.00028756,7]
[424804492,1781173857000,-310.54176147,0.00028756,7]
[424804461,1781173857000,-828.28,0.0002813,7]
[424804464,1781173857000,-1075.67,0.00028213,7]
[424804466,1781173857000,-715.0,0.00028215,7]
[424804473,1781173857000,-350.0,0.00028329,11]
[424804469,1781173857000,-153.08,0.00028219,2]
[424804475,1781173857000,-666.0,0.00028646,11]
[424804471,1781173857000,-1672.4,0.00028267,2]
[424804470,1781173857000,-153.08,0.00028219,2]
[424804472,1781173857000,-167.68,0.000283,7]
[424804467,1781173857000,-714.71,0.00028217,7]
[424804468,1781173857000,-153.08,0.00028219,2]
[424804474,1781173857000,-5294.89,0.00028402,7]
[424804478,1781173857000,-2006.0,0.000287,2]
[424804476,1781173857000,-270.0455652,0.00028656,2]
[424804482,1781173857000,-159.2777381,0.00028729,7]
[424804485,1781173857000,-302.11659959,0.00028756,7]
[424804483,1781173857000,-304.33681561,0.00028729,7]
[424804487,1781173857000,-204.61967188,0.00028756,7]
[424804481,1781173857000,-310.12312838,0.00028729,7]
[424804486,1781173857000,-301.15024951,0.00028756,7]
[424804480,1781173857000,-170.40919311,0.00028724,7]
[424804484,1781173857000,-310.56723495,0.00028756,7]
[424804479,1781173857000,-404.70955384,0.00028714,7]
[424804477,1781173857000,-348.0,0.00028691,2]
[424804490,1781173857000,-305.60207067,0.00028756,2]
[424804526,1781173858000,-500.0,0.00029,2]
[424804536,1781173858000,-500.0,0.00029,2]
[424804525,1781173858000,-500.0,0.00029,2]
[424804535,1781173858000,-615.0,0.00029,7]
[424804522,1781173858000,-500.0,0.00029,2]
[424804518,1781173858000,-167.000151,0.00028971,2]
[424804524,1781173858000,-500.0,0.00029,2]
[424804520,1781173858000,-165.68191016,0.00028971,2]
[424804523,1781173858000,-500.0,0.00029,2]
[424804521,1781173858000,-172.21,0.00028973,120]
[424804519,1781173858000,-167.43618432,0.00028971,2]
[424804528,1781173858000,-404.73,0.00029,2]
[424804517,1781173858000,-190.0,0.00028932,12]
[424804527,1781173858000,-500.0,0.00029,2]
[424804530,1781173858000,-745.999999,0.00029,30]
[424804534,1781173858000,-500.0,0.00029,2]
[424804533,1781173858000,-500.0,0.00029,2]
[424804545,1781173858000,-299.0,0.00029194,30]
[424804546,1781173858000,-75.35456468,0.00029194,30]
[424804543,1781173858000,-472.0,0.00029194,30]
[424804541,1781173858000,-1230.0,0.00029192,30]
[424804542,1781173858000,-449.0,0.00029194,30]
[424804544,1781173858000,-1291.0,0.00029194,30]
[424804538,1781173858000,-100000.0,0.00029009,7]
[424804539,1781173858000,-418.0,0.00029192,30]
[424804537,1781173858000,-527.45674201,0.00029,2]
[424804532,1781173858000,-217.0,0.00029,120]
[424804531,1781173858000,-1250.83731571,0.00029,7]
[424804529,1781173858000,-2323.16554383,0.00029,2]
[424804540,1781173858000,-254.0,0.00029192,30]
[424804559,1781173859000,-2000.0,0.000293,2]
[424804564,1781173859000,-500.0,0.00029363,2]
[424804574,1781173859000,-500.0,0.00029363,2]
[424804561,1781173859000,-500.0,0.00029363,2]
[424804556,1781173859000,-2067.0,0.00029238,30]
[424804562,1781173859000,-659.0,0.00029363,2]
[424804558,1781173859000,-666.0,0.00029273,12]
[424804557,1781173859000,-152.0,0.00029258,4]
[424804560,1781173859000,-500.0,0.00029363,2]
[424804549,1781173859000,-455.64543532,0.00029194,30]
[424804555,1781173859000,-1440.0,0.00029238,30]
[424804552,1781173859000,-441.0,0.00029238,30]
[424804554,1781173859000,-380.0,0.00029238,30]
[424804551,1781173859000,-280.03725111,0.00029204,2]
[424804553,1781173859000,-476.0,0.00029238,30]
[424804548,1781173859000,-15886.23871763,0.0001338,2]
[424804550,1781173859000,-308.0,0.00029194,30]
[424804547,1781173859000,-340.9710952,0.00011175,2]
[424804563,1781173859000,-500.0,0.00029363,2]
[424804565,1781173859000,-500.0,0.00029363,2]
[424804583,1781173859000,-500.0,0.00029363,2]
[424804567,1781173859000,-500.0,0.00029363,2]
[424804566,1781173859000,-500.0,0.00029363,2]
[424804587,1781173859000,-500.0,0.00029363,2]
[424804588,1781173859000,-500.0,0.00029363,2]
[424804586,1781173859000,-500.0,0.00029363,2]
[424804582,1781173859000,-500.0,0.00029363,2]
[424804584,1781173859000,-500.0,0.00029363,2]
[424804579,1781173859000,-500.0,0.00029363,2]
[424804581,1781173859000,-500.0,0.00029363,2]
[424804576,1781173859000,-500.0,0.00029363,2]
[424804585,1781173859000,-500.0,0.00029363,2]
[424804578,1781173859000,-500.0,0.00029363,2]
[424804575,1781173859000,-500.0,0.00029363,2]
[424804577,1781173859000,-500.0,0.00029363,2]
[424804571,1781173859000,-500.0,0.00029363,2]
[424804573,1781173859000,-500.0,0.00029363,2]
[424804572,1781173859000,-500.0,0.00029363,2]
[424804569,1781173859000,-500.0,0.00029363,2]
[424804570,1781173859000,-500.0,0.00029363,2]
[424804580,1781173859000,-500.0,0.00029363,2]
[424804568,1781173859000,-500.0,0.00029363,2]
[424804636,1781173860000,-500.0,0.00029363,2]
[424804630,1781173860000,-500.0,0.00029363,2]
[424804631,1781173860000,-500.0,0.00029363,2]
[424804625,1781173860000,-500.0,0.00029363,2]
[424804627,1781173860000,-500.0,0.00029363,2]
[424804626,1781173860000,-500.0,0.00029363,2]
[424804634,1781173860000,-500.0,0.00029363,2]
[424804624,1781173860000,-500.0,0.00029363,2]
[424804647,1781173860000,-500.0,0.00029363,2]
[424804622,1781173860000,-500.0,0.00029363,2]
[424804633,1781173860000,-500.0,0.00029363,2]
[424804628,1781173860000,-531.0,0.00029363,2]
[424804635,1781173860000,-500.0,0.00029363,2]
[424804641,1781173860000,-500.0,0.00029363,2]
[424804632,1781173860000,-500.0,0.00029363,2]
[424804649,1781173860000,-500.0,0.00029363,2]
[424804638,1781173860000,-500.0,0.00029363,2]
[424804639,1781173860000,-500.0,0.00029363,2]
[424804637,1781173860000,-500.0,0.00029363,2]
[424804648,1781173860000,-500.0,0.00029363,2]
[424804645,1781173860000,-500.0,0.00029363,2]
[424804646,1781173860000,-500.0,0.00029363,2]
[424804615,1781173860000,-500.0,0.00029363,2]
[424804643,1781173860000,-500.0,0.00029363,2]
[424804644,1781173860000,-500.0,0.00029363,2]
[424804642,1781173860000,-500.0,0.00029363,2]
[424804640,1781173860000,-500.0,0.00029363,2]
[424804629,1781173860000,-689.0,0.00029363,2]
[424804617,1781173860000,-500.0,0.00029363,2]
[424804610,1781173860000,-500.0,0.00029363,2]
[424804621,1781173860000,-500.0,0.00029363,2]
[424804598,1781173860000,-500.0,0.00029363,2]
[424804589,1781173860000,-500.0,0.00029363,2]
[424804595,1781173860000,-500.0,0.00029363,2]
[424804594,1781173860000,-500.0,0.00029363,2]
[424804597,1781173860000,-500.0,0.00029363,2]
[424804596,1781173860000,-500.0,0.00029363,2]
[424804590,1781173860000,-500.0,0.00029363,2]
[424804591,1781173860000,-500.0,0.00029363,2]
[424804592,1781173860000,-500.0,0.00029363,2]
[424804593,1781173860000,-500.0,0.00029363,2]
[424804601,1781173860000,-500.0,0.00029363,2]
[424804599,1781173860000,-500.0,0.00029363,2]
[424804605,1781173860000,-500.0,0.00029363,2]
[424804616,1781173860000,-500.0,0.00029363,2]
[424804600,1781173860000,-500.0,0.00029363,2]
[424804603,1781173860000,-500.0,0.00029363,2]
[424804607,1781173860000,-500.0,0.00029363,2]
[424804604,1781173860000,-500.0,0.00029363,2]
[424804608,1781173860000,-500.0,0.00029363,2]
[424804606,1781173860000,-500.0,0.00029363,2]
[424804609,1781173860000,-500.0,0.00029363,2]
[424804612,1781173860000,-500.0,0.00029363,2]
[424804618,1781173860000,-500.0,0.00029363,2]